bitfinex/quotes_BTCUSD_20251217
["timestamp","ask_amount","ask_price","bid_price","bid_amount"]
[1765973744082,0.04714,87293.0,87292.0,0.13312578]
[1765973744464,0.0474225,87293.0,87292.0,0.13312578]
[1765973744883,0.0474225,87293.0,87292.0,0.13373864]
[1765973744884,0.0186525,87293.0,87292.0,0.13373864]
[1765973745072,0.0002825,87293.0,87292.0,0.13373864]
[1765973746267,0.0002825,87293.0,87292.0,0.13473864]
[1765973746417,0.0002825,87293.0,87292.0,0.13573864]
[1765973749520,0.0002825,87293.0,87292.0,0.002]
[1765973749521,0.0474225,87293.0,87292.0,0.002]
[1765973749876,0.0474225,87293.0,87273.0,0.03072535]
[1765973749877,0.04714,87274.0,87273.0,0.03072535]
[1765973750086,0.01471,87275.0,87269.0,0.11500578]
[1765973750087,0.04714,87270.0,87269.0,0.11500578]
[1765973750323,0.04714,87270.0,87269.0,0.13312578]
[1765973750905,0.04348,87275.0,87269.0,0.13373864]
[1765973751243,0.06185,87275.0,87274.0,0.03667391]
[1765973751945,0.06185,87275.0,87269.0,0.13381221]
[1765973751946,0.04714,87270.0,87269.0,0.00068643]
[1765973752100,0.04714,87270.0,87269.0,0.01880643]
[1765973752299,0.30541,87275.0,87269.0,0.01880643]
[1765973752521,0.02877,87274.0,87269.0,0.02180643]
[1765973752724,0.04714,87270.0,87269.0,0.02180643]
[1765973753122,0.04714,87270.0,87269.0,0.01980643]
[1765973753325,0.04714,87270.0,87269.0,0.01880643]
[1765973753532,0.04714,87270.0,87269.0,0.02080643]
[1765973753746,0.04814,87270.0,87269.0,0.00207357]
[1765973753948,0.04814,87270.0,87269.0,7.357e-05]
[1765973754150,0.04814,87270.0,87269.0,0.00107357]
[1765973754406,0.04814,87270.0,87269.0,0.00307357]
[1765973754588,0.055896,87270.0,87269.0,0.00307357]
[1765973755526,0.055896,87270.0,87269.0,0.00107357]
[1765973756366,0.055896,87270.0,87269.0,7.357e-05]
[1765973756786,2.346596,87270.0,87269.0,0.00107357]
[1765973757026,2.46151615,87270.0,87269.0,0.00107357]
[1765973757188,2.46151615,87270.0,87269.0,7.357e-05]
[1765973757618,2.46451615,87270.0,87269.0,7.357e-05]
[1765973758039,2.349596,87270.0,87269.0,7.357e-05]
[1765973758813,0.04714,87267.0,87266.0,3.57e-06]
[1765973759008,0.04725295,87267.0,87266.0,3.57e-06]
[1765973760002,0.04825295,87267.0,87266.0,3.57e-06]
[1765973760316,2.33995295,87267.0,87266.0,3.57e-06]
[1765973768341,2.9273548,87267.0,87266.0,3.57e-06]
[1765973768738,3.04281558,87267.0,87266.0,3.57e-06]
[1765973769342,2.81363388,87267.0,87266.0,3.57e-06]
[1765973769732,2.58325295,87267.0,87266.0,3.57e-06]
[1765973769934,0.58325295,87267.0,87266.0,3.57e-06]
[1765973770515,0.58325295,87267.0,87266.0,0.11500935]
[1765973770516,0.55448295,87267.0,87266.0,0.11500935]
[1765973770688,0.58315295,87267.0,87266.0,0.11500935]
[1765973772471,0.58315295,87267.0,87266.0,3.57e-06]
[1765973772472,0.53611295,87267.0,87266.0,3.57e-06]
[1765973772655,0.58982425,87267.0,87266.0,3.57e-06]
[1765973772853,0.53611295,87267.0,87266.0,3.57e-06]
[1765973773055,0.53611295,87267.0,87266.0,0.11500935]
[1765973773400,0.58408295,87267.0,87266.0,0.11500935]
[1765973773629,0.53611295,87267.0,87266.0,3.57e-06]
[1765973775171,0.58982425,87267.0,87266.0,3.57e-06]
[1765973775510,0.53611295,87267.0,87266.0,3.57e-06]
[1765973778344,0.56474295,87267.0,87266.0,3.57e-06]
[1765973778569,0.53611295,87267.0,87266.0,3.57e-06]
[1765973782222,0.56474295,87267.0,87266.0,3.57e-06]
[1765973783034,0.53611295,87267.0,87266.0,3.57e-06]
[1765973785158,0.58982425,87267.0,87266.0,3.57e-06]
[1765973785783,0.53611295,87267.0,87266.0,3.57e-06]
[1765973786199,0.24541295,87267.0,87266.0,3.57e-06]
[1765973786398,0.00211295,87267.0,87266.0,0.11562221]
[1765973787250,0.00111295,87267.0,87266.0,0.11562221]
[1765973787452,0.00011295,87267.0,87266.0,0.11562221]
[1765973790978,0.04608295,87267.0,87266.0,0.01873643]
[1765973791172,0.04608295,87267.0,87266.0,0.13374221]
[1765973791173,0.00011295,87267.0,87266.0,0.13374221]
[1765973791554,0.00011295,87267.0,87266.0,0.15666064]
[1765973792084,0.00011295,87267.0,87266.0,0.38584497]
[1765973792251,0.00011295,87267.0,87266.0,0.16446647]
[1765973792475,0.00011295,87267.0,87266.0,0.15666064]
[1765973792845,0.00011295,87267.0,87266.0,0.15766064]
[1765973793024,0.00011295,87267.0,87266.0,0.15666064]
[1765973793363,0.00011295,87267.0,87266.0,0.15866064]
[1765973793732,0.00011295,87267.0,87266.0,0.38784497]
[1765973793916,0.00011295,87267.0,87266.0,0.36692654]
[1765973794338,0.00011295,87267.0,87266.0,0.40788365]
[1765973794566,0.00011295,87267.0,87266.0,0.36492654]
[1765973794762,0.00011295,87267.0,87266.0,0.36692654]
[1765973797918,0.00011295,87267.0,87266.0,0.41694493]
[1765973799240,0.00011295,87267.0,87266.0,0.41294493]
[1765973799441,0.00011295,87267.0,87266.0,0.41594493]
[1765973800668,0.00011295,87267.0,87266.0,0.41894493]
[1765973801339,0.00011295,87267.0,87266.0,0.41594493]
[1765973801839,0.00011295,87267.0,87266.0,0.41894493]
[1765973805402,0.00011295,87267.0,87266.0,0.48020375]
[1765973808106,0.00011295,87267.0,87266.0,0.46208375]
[1765973808332,0.00011295,87267.0,87266.0,0.40082493]
[1765973808537,0.00011295,87267.0,87266.0,0.41894493]
[1765973809311,0.00011295,87267.0,87266.0,0.12162221]
[1765973809551,0.00011295,87267.0,87266.0,0.16266064]
[1765973809962,0.00011295,87267.0,87266.0,0.39184497]
[1765973810165,0.00011295,87267.0,87266.0,0.36592654]
[1765973810599,0.00011295,87267.0,87266.0,0.36892654]
[1765973811018,0.00011295,87267.0,87266.0,0.13374221]
[1765973811236,0.00011295,87267.0,87266.0,0.38884497]
[1765973811437,0.00011295,87267.0,87266.0,0.36592654]
[1765973811838,0.00011295,87267.0,87266.0,0.36792654]
[1765973812048,0.00011295,87267.0,87266.0,0.13674221]
[1765973812243,0.00011295,87267.0,87266.0,0.20050491]
[1765973812449,0.00011295,87267.0,87266.0,0.16166064]
[1765973812647,0.00011295,87267.0,87266.0,0.151274]
[1765973812924,0.00011295,87267.0,87266.0,0.02373643]
[1765973813462,0.01872295,87267.0,87266.0,0.00561643]
[1765973813664,0.01872295,87267.0,87266.0,0.02073643]
[1765973813665,0.04622295,87267.0,87266.0,0.02073643]
[1765973813872,0.04622295,87267.0,87266.0,0.01873643]
[1765973814073,0.04622295,87267.0,87266.0,0.02073643]
[1765973815055,0.04722295,87267.0,87266.0,0.01873643]
[1765973815206,0.04622295,87267.0,87266.0,0.01873643]
[1765973815412,0.04722295,87267.0,87266.0,0.01873643]
[1765973816354,0.04722295,87267.0,87266.0,0.01973643]
[1765973816804,0.04722295,87267.0,87266.0,0.01873643]
[1765973817209,0.04722295,87267.0,87266.0,0.01912357]
[1765973819601,0.00111295,87267.0,87266.0,0.01912357]
[1765973820827,0.00111295,87267.0,87266.0,0.00100357]
[1765973821338,0.00111295,87267.0,87266.0,0.01912357]
[1765973824730,0.01763295,87267.0,87266.0,0.01912357]
[1765973824929,0.04332295,87267.0,87266.0,0.01912357]
[1765973826784,0.00111295,87267.0,87266.0,0.01912357]
[1765973827026,0.00111295,87267.0,87266.0,0.13412935]
[1765973833741,0.01763295,87267.0,87266.0,0.13412935]
[1765973833929,0.04332295,87267.0,87266.0,0.01912357]
[1765973834489,0.04432295,87267.0,87266.0,0.00100357]
[1765973834691,0.04432295,87267.0,87266.0,0.01912357]
[1765973839590,0.05006125,87267.0,87266.0,0.01912357]
[1765973839791,0.04432295,87267.0,87266.0,0.01912357]
[1765973839999,0.04432295,87267.0,87266.0,0.00100357]
[1765973840304,0.04432295,87267.0,87266.0,0.01912357]
[1765973844393,0.04432295,87267.0,87266.0,0.00100357]
[1765973844640,0.05006125,87267.0,87266.0,0.00100357]
[1765973846102,0.04432295,87267.0,87266.0,0.00100357]
[1765973850951,0.01863295,87267.0,87266.0,3.57e-06]
[1765973851161,0.00111295,87267.0,87266.0,3.57e-06]
[1765973851330,0.00011295,87267.0,87266.0,3.57e-06]
[1765973851749,0.00111295,87267.0,87266.0,0.13312935]
[1765973852619,0.04498295,87267.0,87266.0,0.13312935]
[1765973852769,0.04498295,87267.0,87266.0,0.01812357]
[1765973852975,0.04498295,87267.0,87266.0,3.57e-06]
[1765973852976,0.00111295,87267.0,87266.0,3.57e-06]
[1765973854720,0.00211295,87267.0,87266.0,3.57e-06]
[1765973856335,0.6369148,87267.0,87266.0,3.57e-06]
[1765973856530,2.45161253,87267.0,87266.0,3.57e-06]
[1765973856790,2.56707331,87267.0,87266.0,3.57e-06]
[1765973857517,2.56807331,87267.0,87266.0,3.57e-06]
[1765973857968,2.80025501,87267.0,87266.0,3.57e-06]
[1765973860055,2.80025501,87267.0,87247.0,0.00164429]
[1765973860056,0.01146131,87250.0,87247.0,4.29e-06]
[1765973860268,2.69162176,87248.0,87247.0,4.29e-06]
[1765973860489,2.47178919,87248.0,87247.0,4.29e-06]
[1765973860680,2.62172458,87248.0,87247.0,4.29e-06]
[1765973861471,2.62472458,87248.0,87247.0,4.29e-06]
[1765973863275,0.34747,87237.0,87236.0,4.29e-06]
[1765973863509,0.39723345,87237.0,87236.0,4.29e-06]
[1765973863885,0.34747,87237.0,87236.0,4.29e-06]
[1765973864387,0.05677,87237.0,87236.0,4.29e-06]
[1765973864600,0.05788288,87237.0,87236.0,4.29e-06]
[1765973865341,0.17280303,87237.0,87236.0,4.29e-06]
[1765973866365,0.00111288,87237.0,87236.0,4.29e-06]
[1765973866570,0.00111288,87237.0,87236.0,0.11562293]
[1765973866888,0.00111288,87237.0,87236.0,0.13374293]
[1765973867167,0.00111288,87237.0,87236.0,0.15666924]
[1765973867290,0.00011288,87237.0,87236.0,0.15666924]
[1765973867509,0.00011288,87237.0,87236.0,0.19434315]
[1765973868785,0.00011288,87237.0,87236.0,0.19468878]
[1765973868988,0.00011288,87237.0,87236.0,0.42395192]
[1765973869190,0.00011288,87237.0,87236.0,0.40102561]
[1765973870283,0.00011288,87237.0,87236.0,0.40002561]
[1765973870746,0.00011288,87237.0,87236.0,0.40302561]
[1765973870965,0.00011288,87237.0,87236.0,0.40602561]
[1765973879448,0.00011288,87237.0,87236.0,0.34103822]
[1765973879652,0.00011288,87237.0,87236.0,0.456044]
[1765973879963,0.00011288,87237.0,87236.0,0.481094]
[1765973880402,0.00011288,87237.0,87236.0,0.54235282]
[1765973880614,0.00011288,87237.0,87236.0,0.481094]
[1765973882604,0.00011288,87237.0,87236.0,0.462974]
[1765973882733,0.00011288,87237.0,87236.0,0.43107561]
[1765973883336,0.00011288,87237.0,87236.0,0.18369247]
[1765973883558,0.00011288,87237.0,87236.0,0.42895192]
[1765973883758,0.00011288,87237.0,87236.0,0.40602561]
[1765973887893,0.00011288,87237.0,87236.0,0.17676247]
[1765973888096,0.00011288,87237.0,87236.0,0.19968878]
[1765973888799,0.00011288,87237.0,87236.0,0.24059322]
[1765973888999,0.00011288,87237.0,87236.0,0.21766691]
[1765973890237,0.00011288,87237.0,87236.0,0.19954691]
[1765973890593,0.00011288,87237.0,87236.0,0.11908696]
[1765973892148,0.00011288,87237.0,87236.0,0.14977046]
[1765973893295,0.00011288,87237.0,87236.0,0.40602561]
[1765973893707,0.00011288,87237.0,87236.0,0.44697517]
[1765973894464,0.00011288,87237.0,87236.0,0.40602561]
[1765973895492,0.00011288,87237.0,87236.0,0.17676247]
[1765973895798,0.00011288,87237.0,87236.0,0.19968878]
[1765973897128,0.00011288,87237.0,87236.0,0.42895192]
[1765973897332,0.00011288,87237.0,87236.0,0.40602561]
[1765973897685,0.00011288,87237.0,87236.0,0.17676247]
[1765973897890,0.00011288,87237.0,87236.0,0.19968878]
[1765973900077,0.00011288,87237.0,87236.0,0.42895192]
[1765973900276,0.00011288,87237.0,87236.0,0.40602561]
[1765973900694,0.04298288,87237.0,87236.0,0.00696278]
[1765973900972,0.04298288,87237.0,87236.0,0.00634992]
[1765973901911,0.04298288,87237.0,87236.0,0.00334992]
[1765973902116,0.04298288,87237.0,87236.0,0.00534992]
[1765973902616,0.04298288,87237.0,87236.0,0.00234992]
[1765973902976,0.04298288,87237.0,87236.0,0.00134992]
[1765973903376,0.04298288,87237.0,87236.0,0.00034992]
[1765973903988,0.0610657,87237.0,87236.0,0.00034992]
[1765973905927,0.0620657,87237.0,87236.0,0.00034992]
[1765973906139,0.0640657,87237.0,87236.0,0.00034992]
[1765973908424,0.0640657,87237.0,87236.0,0.01908278]
[1765973908425,0.00311288,87237.0,87236.0,0.01908278]
[1765973908559,0.00311288,87237.0,87236.0,0.13408856]
[1765973909221,0.00211288,87237.0,87236.0,0.13408856]
[1765973909563,0.00311288,87237.0,87236.0,0.13408856]
[1765973909759,0.00111288,87237.0,87236.0,0.13408856]
[1765973909980,0.00011288,87237.0,87236.0,0.13408856]
[1765973910188,0.00011288,87237.0,87236.0,0.13508856]
[1765973910388,0.00011288,87237.0,87236.0,0.13608856]
[1765973911562,0.00011288,87237.0,87236.0,0.02108278]
[1765973911733,0.00011288,87237.0,87236.0,0.13608856]
[1765973912523,0.04298288,87237.0,87236.0,0.02046992]
[1765973913469,0.04298288,87237.0,87236.0,0.01846992]
[1765973913746,0.04398288,87237.0,87236.0,0.01846992]
[1765973915571,0.04298288,87237.0,87236.0,0.01846992]
[1765973916779,0.07761717,87237.0,87236.0,0.00034992]
[1765973918397,0.61261717,87237.0,87236.0,0.00034992]
[1765973918559,0.61361717,87237.0,87236.0,0.00034992]
[1765973919710,0.72853732,87237.0,87236.0,0.00034992]
[1765973919932,0.61361717,87237.0,87236.0,0.00034992]
[1765973922465,0.64809503,87237.0,87236.0,0.00034992]
[1765973922816,0.05432,87223.0,87222.0,0.0004]
[1765973923013,0.113822,87223.0,87222.0,0.0004]
[1765973923426,0.57431731,87223.0,87222.0,0.0004]
[1765973923637,0.45994015,87223.0,87222.0,0.0004]
[1765973925369,0.45994015,87223.0,87221.0,0.15]
[1765973925370,0.33251,87222.0,87221.0,0.15]
[1765973926351,0.04181,87222.0,87221.0,0.15]
[1765973926557,0.1287668,87222.0,87221.0,0.15]
[1765973927146,0.4204668,87222.0,87221.0,0.15]
[1765973927350,0.53538695,87222.0,87221.0,0.15]
[1765973927590,0.45043015,87222.0,87221.0,0.15]
[1765973928550,0.05432,87214.0,87213.0,0.0004]
[1765973928890,0.05432,87214.0,87213.0,0.00112292]
[1765973939672,0.05532,87214.0,87213.0,0.00112292]
[1765973940618,0.02953,87214.0,87213.0,0.00112292]
[1765973940828,0.001,87214.0,87213.0,0.00112292]
[1765973941035,0.002,87214.0,87213.0,0.00112292]
[1765973941465,0.001,87214.0,87213.0,0.00112292]
[1765973941928,0.04181,87214.0,87213.0,0.00112292]
[1765973942148,0.01602,87214.0,87213.0,0.00112292]
[1765973942348,0.02579,87217.0,87213.0,0.00112292]
[1765973942555,0.02579,87217.0,87213.0,0.0004]
[1765973942770,0.25581,87218.0,87213.0,0.00101286]
[1765973942969,0.2433,87218.0,87217.0,0.11561864]
[1765973944325,0.00011288,87237.0,87233.0,0.11500578]
[1765973944538,0.00011288,87237.0,87236.0,0.03667391]
[1765973945533,0.00011288,87237.0,87236.0,0.15167969]
[1765973945968,0.00111288,87237.0,87236.0,0.15167969]
[1765973946110,0.00211288,87237.0,87236.0,0.15167969]
[1765973946960,0.00211288,87237.0,87236.0,0.03667391]
[1765973947167,0.00111288,87237.0,87236.0,0.03667391]
[1765973947365,0.00111288,87237.0,87236.0,0.15167969]
[1765973947540,0.00011288,87237.0,87236.0,0.15229255]
[1765973947747,0.00011288,87237.0,87236.0,0.03828677]
[1765973947946,0.00011288,87237.0,87236.0,0.03767391]
[1765973947947,0.04349288,87237.0,87236.0,0.03767391]
[1765973948197,0.04349288,87237.0,87236.0,0.05683391]
[1765973948198,0.00011288,87237.0,87236.0,0.05683391]
[1765973948328,0.00011288,87237.0,87236.0,0.05583391]
[1765973948524,0.00011288,87237.0,87236.0,0.05783391]
[1765973948927,0.00011288,87237.0,87236.0,0.17245255]
[1765973949186,0.00011288,87237.0,87236.0,0.17045255]
[1765973949363,0.00011288,87237.0,87236.0,0.17145255]
[1765973950630,0.00011288,87237.0,87236.0,0.17245255]
[1765973950865,0.00011288,87237.0,87236.0,0.18959781]
[1765973951211,0.00011288,87237.0,87236.0,0.21252412]
[1765973952236,0.00011288,87237.0,87236.0,0.18959781]
[1765973953598,0.00011288,87237.0,87236.0,0.17245255]
[1765973954024,0.00011288,87237.0,87236.0,0.19537886]
[1765973954405,0.00011288,87237.0,87236.0,0.17241255]
[1765973958380,0.01745288,87237.0,87236.0,0.15429255]
[1765973958587,0.04300288,87237.0,87236.0,0.03928677]
[1765973958802,0.04300288,87237.0,87236.0,0.05740677]
[1765973959050,0.01745288,87237.0,87236.0,0.05740677]
[1765973959422,0.00011288,87237.0,87236.0,0.05740677]
[1765973959628,0.00011288,87237.0,87236.0,0.05731632]
[1765973960051,0.00011288,87237.0,87236.0,0.05661304]
[1765973962650,0.04300288,87237.0,87236.0,0.05661304]
[1765973964107,0.04400288,87237.0,87236.0,0.03849304]
[1765973964274,0.04400288,87237.0,87236.0,0.02012]
[1765973965101,0.04400288,87237.0,87236.0,0.01912]
[1765973965258,0.04400288,87237.0,87236.0,0.02012]
[1765973965901,0.00111288,87237.0,87236.0,0.01912]
[1765973966105,0.00111288,87237.0,87236.0,0.02012]
[1765973968771,0.00011288,87237.0,87236.0,0.02012]
[1765973973283,0.04300288,87237.0,87236.0,0.02012]
[1765973975183,0.00011288,87237.0,87236.0,0.13512578]
[1765973976587,0.04182288,87237.0,87236.0,0.02012]
[1765973978135,0.00011288,87237.0,87236.0,0.02012]
[1765973978335,0.00011288,87237.0,87236.0,0.13512578]
[1765973978573,0.00011288,87237.0,87236.0,0.13573864]
[1765973980941,0.00011288,87237.0,87236.0,0.15866495]
[1765973981356,0.24310258,87253.0,87251.0,0.11500578]
[1765973981557,0.24315007,87253.0,87252.0,0.05479391]
[1765973981785,4.749e-05,87253.0,87252.0,0.05479391]
[1765973983075,4.749e-05,87253.0,87251.0,0.00061286]
[1765973983076,4.749e-05,87253.0,87245.0,0.11500578]
[1765973983279,0.04275749,87253.0,87252.0,0.05479391]
[1765973983661,0.04375749,87253.0,87252.0,0.05479391]
[1765973983865,0.04275749,87253.0,87252.0,0.05479391]
[1765973984254,0.04375749,87253.0,87252.0,0.05479391]
[1765973984446,0.01943749,87253.0,87252.0,0.05479391]
[1765973984923,0.02043749,87253.0,87252.0,0.05479391]
[1765973988838,0.04475749,87253.0,87252.0,0.05479391]
[1765973991176,0.02043749,87253.0,87252.0,0.05479391]
[1765973991375,0.00204749,87253.0,87252.0,0.05479391]
[1765973996243,0.00204749,87253.0,87252.0,0.16979969]
[1765973996484,0.00204749,87253.0,87252.0,0.05479391]
[1765974001761,0.00204749,87253.0,87252.0,0.16979969]
[1765974001975,0.00204749,87253.0,87252.0,0.05479391]
[1765974002551,0.00204749,87253.0,87252.0,0.16979969]
[1765974003529,0.00204749,87253.0,87252.0,0.05479391]
[1765974004940,0.02625749,87253.0,87252.0,0.05479391]
[1765974006054,0.00204749,87253.0,87252.0,0.05479391]
[1765974007045,0.04288749,87253.0,87252.0,0.05479391]
[1765974008030,0.01867749,87253.0,87252.0,0.05479391]
[1765974008235,0.00204749,87253.0,87252.0,0.05479391]
[1765974010252,0.04288749,87253.0,87252.0,0.05479391]
[1765974010461,0.04288749,87253.0,87230.0,0.03667391]
[1765974010462,0.02421,87252.0,87242.0,0.11500578]
[1765974010655,0.04084,87250.0,87247.0,0.03667391]
[1765974010890,0.02421,87249.0,87248.0,0.01812]
[1765974011723,0.04084,87249.0,87248.0,0.01812]
[1765974013916,0.00104749,87253.0,87247.0,0.03667391]
[1765974013917,0.04084,87248.0,87247.0,0.03667391]
[1765974014121,0.04084,87248.0,87247.0,0.05479391]
[1765974014322,0.05357,87248.0,87247.0,0.05479391]
[1765974014526,0.02936,87248.0,87247.0,0.05479391]
[1765974014732,0.05357,87248.0,87247.0,0.05479391]
[1765974014908,0.05357,87248.0,87247.0,0.01812]
[1765974015112,0.02421,87247.0,87239.0,0.04106214]
[1765974015308,0.04084,87247.0,87246.0,0.03667391]
[1765974018901,0.05357,87240.0,87239.0,0.00061286]
[1765974019209,0.02936,87232.0,87231.0,0.04106214]
[1765974019430,0.01273,87240.0,87231.0,0.01873286]
[1765974019638,0.01273,87240.0,87239.0,0.11500578]
[1765974019984,0.02421,87243.0,87239.0,0.11500578]
[1765974020285,0.02421,87243.0,87239.0,0.11600578]
[1765974020823,0.02421,87243.0,87239.0,0.11500578]
[1765974021023,0.02936,87240.0,87239.0,0.11500578]
[1765974021226,0.02421,87239.0,87236.0,0.11500578]
[1765974021790,0.04084,87234.0,87233.0,0.11500578]
[1765974021991,0.02421,87233.0,87231.0,0.01873286]
[1765974022352,0.05357,87232.0,87231.0,0.00061286]
[1765974022498,0.05357,87232.0,87231.0,0.01873286]
[1765974023525,0.05357,87232.0,87231.0,0.02073286]
[1765974023728,0.05357,87232.0,87231.0,0.02173286]
[1765974025288,0.02421,87239.0,87231.0,0.02173286]
[1765974025458,0.02421,87239.0,87231.0,0.01973286]
[1765974025644,0.02421,87239.0,87234.0,0.11500578]
[1765974026911,0.02421,87239.0,87235.0,0.01812]
[1765974027120,0.04084,87236.0,87235.0,0.01812]
[1765974030026,0.01273,87240.0,87235.0,0.01812]
[1765974030224,0.01273,87240.0,87235.0,0.001]
[1765974030613,0.04084,87237.0,87236.0,0.01812]
[1765974032928,0.02936,87232.0,87231.0,0.00061286]
[1765974033099,0.02936,87232.0,87231.0,0.01873286]
[1765974033458,0.05357,87232.0,87231.0,0.01873286]
[1765974034330,0.05357,87232.0,87231.0,0.01973286]
[1765974035134,0.05357,87232.0,87231.0,0.02073286]
[1765974036849,0.02936,87232.0,87231.0,0.02073286]
[1765974039072,0.02936,87232.0,87231.0,0.002]
[1765974039239,0.0521,87232.0,87231.0,0.02012]
[1765974048128,0.0521,87232.0,87231.0,0.01812]
[1765974048540,0.03912,87229.0,87226.0,0.03667391]
[1765974048716,0.03912,87229.0,87228.0,0.01837141]
[1765974050744,0.00302461,87229.0,87228.0,0.01837141]
[1765974050902,0.01940461,87229.0,87228.0,0.01837141]
[1765974052436,0.01940461,87229.0,87228.0,0.00025141]
[1765974055476,0.03968547,87229.0,87228.0,0.00025141]
[1765974055665,0.01940461,87229.0,87228.0,0.00025141]
[1765974060391,0.31010461,87229.0,87228.0,0.00025141]
[1765974061140,0.6724263,87229.0,87228.0,0.00025141]
[1765974061303,2.68129306,87229.0,87228.0,0.00025141]
[1765974061486,2.68129306,87229.0,87228.0,1.41e-06]
[1765974061693,2.79875384,87229.0,87228.0,1.41e-06]
[1765974062127,2.45401152,87229.0,87228.0,1.41e-06]
[1765974062324,2.45501152,87229.0,87228.0,1.41e-06]
[1765974062864,2.45401152,87229.0,87228.0,1.41e-06]
[1765974063053,2.33709137,87229.0,87228.0,1.41e-06]
[1765974063227,2.34109137,87229.0,87228.0,1.41e-06]
[1765974063437,2.45601152,87229.0,87228.0,1.41e-06]
[1765974063821,2.53940461,87229.0,87228.0,1.41e-06]
[1765974064021,2.6991141,87229.0,87228.0,1.41e-06]
[1765974067472,2.69024734,87229.0,87228.0,1.41e-06]
[1765974068062,2.69910607,87229.0,87228.0,1.41e-06]
[1765974068261,2.69024734,87229.0,87228.0,1.41e-06]
[1765974068717,2.91952888,87229.0,87228.0,1.41e-06]
[1765974069030,3.04384777,87229.0,87228.0,1.41e-06]
[1765974070118,2.92838699,87229.0,87228.0,1.41e-06]
[1765974070476,2.92638699,87229.0,87228.0,1.41e-06]
[1765974070886,2.92938699,87229.0,87228.0,1.41e-06]
[1765974071136,2.92738699,87229.0,87228.0,1.41e-06]
[1765974071406,2.5831853,87229.0,87228.0,1.41e-06]
[1765974071612,2.04252461,87229.0,87228.0,1.41e-06]
[1765974071786,0.03952461,87229.0,87228.0,1.41e-06]
[1765974072131,0.03752461,87229.0,87228.0,1.41e-06]
[1765974072419,0.03852461,87229.0,87228.0,1.41e-06]
[1765974072800,0.03752461,87229.0,87228.0,1.41e-06]
[1765974073128,0.09921208,87229.0,87228.0,1.41e-06]
[1765974073432,0.09821208,87229.0,87228.0,1.41e-06]
[1765974073853,0.03852461,87229.0,87228.0,1.41e-06]
[1765974074528,0.05801,87229.0,87228.0,1.41e-06]
[1765974075154,0.05701,87229.0,87228.0,1.41e-06]
[1765974095597,0.34771,87229.0,87228.0,1.41e-06]
[1765974096457,0.57699154,87229.0,87228.0,1.41e-06]
[1765974096942,0.34871,87229.0,87228.0,1.41e-06]
[1765974097161,0.34971,87229.0,87228.0,1.41e-06]
[1765974097348,2.60668474,87229.0,87228.0,1.41e-06]
[1765974097545,2.96470747,87229.0,87228.0,1.41e-06]
[1765974098004,2.84978732,87229.0,87228.0,1.41e-06]
[1765974098392,2.83076245,87229.0,87228.0,1.41e-06]
[1765974099726,2.9456826,87229.0,87228.0,1.41e-06]
[1765974101736,2.94522286,87229.0,87228.0,1.41e-06]
[1765974102158,2.83030271,87229.0,87228.0,1.41e-06]
[1765974102456,2.60102117,87229.0,87228.0,1.41e-06]
[1765974102638,2.83030271,87229.0,87228.0,1.41e-06]
[1765974103532,2.94576349,87229.0,87228.0,1.41e-06]
[1765974105032,2.94576036,87229.0,87228.0,1.41e-06]
[1765974105432,2.60101804,87229.0,87228.0,1.41e-06]
[1765974105860,2.83029958,87229.0,87228.0,1.41e-06]
[1765974110426,2.88760989,87229.0,87228.0,1.41e-06]
[1765974110640,2.88760989,87229.0,87211.0,0.0004]
[1765974110641,0.3304,87212.0,87211.0,1.41e-06]
[1765974110842,0.58934459,87212.0,87211.0,1.41e-06]
[1765974111201,0.5939426,87212.0,87211.0,0.00053578]
[1765974112037,0.5939426,87212.0,87211.0,0.00153578]
[1765974112281,0.5939426,87212.0,87211.0,0.00253578]
[1765974113107,0.57810059,87212.0,87211.0,0.00053578]
[1765974114554,0.57910059,87212.0,87211.0,0.00053578]
[1765974114757,0.57910059,87212.0,87199.0,0.0004]
[1765974114758,0.05124,87208.0,87199.0,0.0004]
[1765974114999,0.05124,87200.0,87199.0,0.0004]
[1765974115553,0.05124,87200.0,87199.0,0.00077729]
[1765974115756,0.08572777,87200.0,87199.0,0.00077729]
[1765974116591,0.08672777,87200.0,87199.0,0.00077729]
[1765974117626,0.41153754,87200.0,87199.0,0.00077729]
[1765974117993,0.41253754,87200.0,87199.0,0.00077729]
[1765974119932,0.41253754,87200.0,87195.0,0.0004]
[1765974119933,0.03282,87196.0,87195.0,0.0004]
[1765974120091,2.03282,87196.0,87195.0,0.0004]
[1765974120479,2.27592258,87196.0,87195.0,0.0004]
[1765974120712,2.39138336,87196.0,87195.0,0.0004]
[1765974120909,2.28052164,87196.0,87195.0,0.0004]
[1765974121689,2.28152164,87196.0,87195.0,0.0004]
[1765974122329,2.28252164,87196.0,87195.0,0.0004]
[1765974122579,0.24970164,87196.0,87195.0,0.0004]
[1765974123788,0.24510258,87196.0,87195.0,0.0004]
[1765974126138,0.28547258,87196.0,87195.0,0.0004]
[1765974127909,0.24510258,87196.0,87195.0,0.0004]
[1765974128170,0.28547258,87196.0,87195.0,0.0004]
[1765974128431,0.28547258,87196.0,87195.0,0.00101286]
[1765974128432,0.26154258,87196.0,87195.0,0.00101286]
[1765974128659,0.53580258,87196.0,87195.0,0.00101286]
[1765974128905,0.2927,87196.0,87195.0,0.00101286]
[1765974129806,0.01234,87200.0,87195.0,0.00101286]
[1765974130024,0.02393,87199.0,87195.0,0.00101286]
[1765974130712,0.01234,87200.0,87195.0,0.00101286]
[1765974131897,0.01234,87200.0,87195.0,0.0013905]
[1765974134448,0.03627,87200.0,87195.0,0.0013905]
[1765974134826,0.02393,87199.0,87195.0,0.0013905]
[1765974137573,0.05252,87196.0,87195.0,0.0013905]
[1765974137777,0.01234,87200.0,87195.0,0.0013905]
[1765974138414,0.03627,87200.0,87195.0,0.0013905]
[1765974138766,0.02393,87199.0,87195.0,0.0013905]
[1765974139451,0.05252,87196.0,87195.0,0.00077764]
[1765974139690,0.01215,87196.0,87195.0,0.00077764]
[1765974139896,0.02393,87199.0,87195.0,0.00077764]
[1765974140282,0.04037,87196.0,87195.0,0.00077764]
[1765974140847,0.02393,87199.0,87195.0,0.00077764]
[1765974143069,0.04037,87196.0,87195.0,0.00077764]
[1765974145827,0.01234,87200.0,87195.0,0.0013905]
[1765974145995,0.01215,87204.0,87196.0,0.03667391]
[1765974146195,0.03608,87204.0,87196.0,0.03728677]
[1765974146609,0.02393,87203.0,87196.0,0.03728677]
[1765974148303,0.02493,87203.0,87196.0,0.03728677]
[1765974148866,0.001,87203.0,87201.0,0.11500578]
[1765974148993,0.002,87203.0,87201.0,0.11500578]
[1765974149197,0.02593,87203.0,87201.0,0.11500578]
[1765974149822,0.02393,87203.0,87201.0,0.11500578]
[1765974150024,0.02493,87203.0,87196.0,0.03728677]
[1765974150277,0.01644,87202.0,87196.0,0.03728677]
[1765974150396,0.05252,87197.0,87196.0,0.03728677]
[1765974151002,0.02393,87203.0,87196.0,0.03728677]
[1765974151211,0.02493,87203.0,87196.0,0.03728677]
[1765974151512,0.02393,87203.0,87196.0,0.03728677]
[1765974151752,0.02493,87203.0,87196.0,0.03728677]